[Event "Stare Mesto Open-A 2022"]
[Site "Stare Mesto"]
[Date "2022.08.18"]
[Round "7.6"]
[White "Husek, Martin"]
[Black "Horvath, Tomas"]
[Result "1-0"]
[ECO "E44"]
[WhiteElo "2132"]
[BlackElo "2094"]
[Annotator "NA RC"]
[PlyCount "79"]
[EventDate "2022.08.12"]
[EventType "swiss"]
[EventCountry "CZE"]
[SourceTitle "playchess.com"]
[Source "ChessBase"]
[SourceQuality "1"]
[TimeControl "40/5400+30:1800+30"]

1. d4 {[%emt 0:00:08]} Nf6 {[%emt 0:00:03]} 2. c4 {[%emt 0:00:07]} e6 {[%emt 0:00:04]} 3. Nc3 {[%emt 0:00:06]} Bb4 {[%emt 0:00:05]} 4. e3 {[%emt 0:00:05]} b6 {[%emt 0:00:30]} 5. Nge2 {[%emt 0:00:18]} Bb7 {[%emt 0:01:26]} 6. a3 {[%emt 0:00:12]} Be7 {[%emt 0:01:43]} 7. d5 {[%emt 0:00:14]} exd5 {[%emt 0:01:29]} 8. cxd5 {[%emt 0:00:12]} O-O {[%emt 0:02:43]} 9. g3 {[%emt 0:00:25]} d6 {[%emt 0:05:00]} 10. Bg2 {[%emt 0:00:13]} Nbd7 {[%emt 0:00:24]} 11. O-O {[%emt 0:00:14]} Re8 {[%emt 0:02:08]} 12. Nd4 {[%emt 0:01:23]} Bf8 {[%emt 0:02:12]} 13. Nc6 {[%emt 0:07:01]} Bxc6 {[%emt 0:01:42]} 14. dxc6 {[%emt 0:00:09]} Ne5 {[%emt 0:02:02]} 15. f4 {[%emt 0:01:47]} Neg4 {[%emt 0:04:34]} 16. e4 {[%emt 0:00:40]} d5 {[%emt 0:01:17]} 17. e5 {[%emt 0:00:42]} Bc5+ {[%emt 0:00:17]} 18. Kh1 {[%emt 0:00:13]} Nf2+ {[%emt 0:03:19]} 19. Rxf2 {[%emt 0:00:09]} Bxf2 {[%emt 0:00:12]} 20. Qf1 {[%emt 0:03:19]} d4 {[%emt 0:15:15]} 21. Nd1 {[%emt 0:02:27]} Ng4 {[%emt 0:09:14]} 22. Nxf2 {[%emt 0:00:43]} Ne3 {[%emt 0:03:36]} 23. Bxe3 {[%emt 0:00:14]} dxe3 {[%emt 0:00:04]} 24. Ne4 {[%emt 0:00:46]} Qd4 {[%emt 0:01:02]} 25. Qe2 {[%emt 0:01:25]} Rad8 {[%emt 0:00:55]} 26. Re1 {[%emt 0:01:16]} f6 {[%emt 0:01:19]} 27. Nc3 {[%emt 0:02:54]} fxe5 {[%emt 0:03:44]} 28. f5 {[%emt 0:00:09]} Qd2 {[%emt 0:06:05]} 29. Qxe3 {[%emt 0:00:19]} Qxb2 {[%emt 0:00:53]} 30. Nd5 {[%emt 0:00:09]} e4 {[%emt 0:01:18]} 31. Nxc7 {[%emt 0:02:06]} Rd2 {[%emt 0:02:34]} 32. Rg1 {[%emt 0:01:36]} Re5 {[%emt 0:09:06]} 33. Ne6 {[%emt 0:01:05]} Rxf5 {[%emt 0:04:00]} 34. c7 {[%emt 0:00:12]} Rc2 {[%emt 0:00:16]} 35. Qxe4 {[%emt 0:00:19]} Rff2 {[%emt 0:03:17]} 36. Qa8+ {[%emt 0:00:57]} Kf7 {[%emt 0:00:04]} 37. c8=Q {[%emt 0:01:31]} Rxc8 {[%emt 0:00:20]} 38. Qxc8 {[%emt 0:00:12]} Rxg2 {[%emt 0:00:18]} 39. Ng5+ {[%emt 0:00:07]} Ke7 {[%emt 0:00:46]} 40. Rxg2 {[%emt 0:00:24]} 1-0

[Event "Stare Mesto Open-A 2022"]
[Site "Stare Mesto"]
[Date "2022.08.18"]
[Round "7.7"]
[White "Muller, David"]
[Black "Skalsky, Alexandr"]
[Result "0-1"]
[ECO "B06"]
[WhiteElo "1874"]
[BlackElo "2187"]
[Annotator "TA"]
[PlyCount "82"]
[EventDate "2022.08.12"]
[EventType "swiss"]
[EventCountry "CZE"]
[SourceTitle "playchess.com"]
[Source "ChessBase"]
[SourceQuality "1"]
[TimeControl "40/5400+30:1800+30"]

{[%evp 9,82,52,69,63,56,38,65,27,41,-31,-20,-31,-29,-24,-31,-46,-26,-26,-4,0,0,-11,-11,-29,-29,-32,0,-58,-58,-64,-56,-65,-45,-52,-46,-57,-51,-61,-62,-65,-66,-73,-68,-118,-111,-102,-93,-110,-106,-112,-110,-245,-242,-278,-236,-210,-142,-137,-129,-142,-134,-134,-131,-149,-149,-169,-169,-260,-250,-368,-355,-345,-340,-275,-253]} 1. e4 {[%emt 0:00:03]} g6 {[%emt 0:00:21]} 2. d4 {[%emt 0:00:20]} Bg7 {[%emt 0:00:03]} 3. Nf3 {[%emt 0:00:17]} d6 {[%emt 0:00:05]} 4. Bd3 {[%emt 0:00:10]} c5 {[%emt 0:00:32]} 5. c3 {[%emt 0:01:59]} Bg4 {[%emt 0:06:16]} 6. dxc5 {[%emt 0:06:55] B06: Modern Defence.} dxc5 {[%emt 0:00:36]} 7. Be3 {[%emt 0:00:48] [#]} Qc7 $146 {[%emt 0:04:08]} ({Predecessor:} 7... Nd7 8. h3 Bxf3 9. Qxf3 Ngf6 10. O-O O-O 11. Bc2 Qc7 12. Nd2 Nb6 13. Qe2 Nfd7 {0-1 (94) Al Hajiri,B (2116)-Mansour,S (2245) Baku 2016}) 8. Bb5+ {[%emt 0:04:06] White is slightly better.} Nd7 {[%emt 0:10:02]} 9. Qd5 {[%emt 0:12:00]} ({Better is} 9. Nbd2 $14) 9... Ngf6 $15 {[%emt 0:17:19]} 10. Qxc5 {[%emt 0:15:54]} (10. Qe5 {with more complications.} Qd8 11. Nbd2 O-O 12. Bxd7 Nxd7 13. Qg5) 10... Qxc5 {[%emt 0:00:43]} 11. Bxc5 {[%emt 0:00:08]} Nxe4 {[%emt 0:00:49]} 12. Bd4 {[%emt 0:05:21]} Bxf3 {[%emt 0:03:03]} 13. gxf3 {[%emt 0:00:38]} Nef6 {[%emt 0:08:39]} 14. Nd2 {[%emt 0:04:51]} O-O {[%emt 0:01:36]} 15. Ne4 {[%emt 0:05:59]} Rfd8 {[%emt 0:06:02]} 16. Nxf6+ {[%emt 0:08:45]} Bxf6 {[%emt 0:04:47]} 17. O-O-O {[%emt 0:01:19]} Ne5 {[%emt 0:13:19]} 18. Bxe5 {[%emt 0:02:00]} (18. Be2 $11) 18... Bxe5 {[%emt 0:00:14]} 19. h3 {[%emt 0:00:10]} Bd6 {[%emt 0:01:39]} 20. Rhe1 {[%emt 0:01:41]} Rdc8 {[%emt 0:06:09]} 21. Rd5 {[%emt 0:04:57]} Rc7 {[%emt 0:01:39]} 22. Kc2 {[%emt 0:04:24]} Rac8 {[%emt 0:00:19]} 23. Red1 {[%emt 0:02:30]} Kg7 {[%emt 0:00:41]} 24. Bf1 {[%emt 0:05:58]} Rc5 {[%emt 0:00:53]} 25. c4 {[%emt 0:01:33]} Kf6 {[%emt 0:06:32]} 26. b3 {[%emt 0:01:36]} (26. a3 $15) 26... Rxd5 {[%emt 0:00:34]} 27. Rxd5 {[%emt 0:00:06]} Rc5 {[%emt 0:00:03]} 28. Rxc5 {[%emt 0:05:09]} Bxc5 $17 {[%emt 0:00:01][%mdl 4096] Endgame KB-KB} 29. Kd3 {[%emt 0:01:10]} Ke5 {[%emt 0:03:28]} 30. f4+ {[%emt 0:01:42] Now White is beyond hope.} (30. Ke2 $17) 30... Kxf4 $19 {[%emt 0:00:11] [#] Strongly threatening ...Kf3.} 31. Ke2 {[%emt 0:00:07]} b6 {[%emt 0:00:39]} 32. Bg2 {[%emt 0:00:12]} Ke5 {[%emt 0:00:36]} 33. Bc6 {[%emt 0:01:28]} Kd4 {[%emt 0:00:34]} 34. Kd2 {[%emt 0:00:06]} Bb4+ {[%emt 0:01:54]} 35. Ke2 {[%emt 0:02:12]} Kc3 {[%emt 0:01:01]} 36. Be8 {[%emt 0:01:10]} f6 {[%emt 0:00:03]} 37. f4 {[%emt 0:00:30]} Kb2 {[%emt 0:01:12]} 38. h4 {[%emt 0:00:38]} (38. a4 {was necessary.}) 38... Kxa2 {[%emt 0:00:34]} 39. Ba4 {[%emt 0:00:04]} (39. Bxg6 {is a better defense.} h6 40. Bc2) 39... Bd6 {[%emt 0:02:08]} 40. Kf3 {[%emt 0:00:11]} h6 {[%emt 0:00:29]} 41. Ke4 {[%emt 0:10:16]} Ka3 {[%emt 0:05:16] Weighted Error Value: White=0.26 (precise) /Black=0.09 (flawless)} 0-1

[Event "Stare Mesto Open-A 2022"]
[Site "Stare Mesto"]
[Date "2022.08.18"]
[Round "7.8"]
[White "Setina, Vaclav"]
[Black "Travnicek, Krystof Mikulas"]
[Result "0-1"]
[ECO "A46"]
[WhiteElo "1760"]
[BlackElo "2138"]
[Annotator "NA RC"]
[PlyCount "92"]
[EventDate "2022.08.12"]
[EventType "swiss"]
[EventCountry "CZE"]
[SourceTitle "playchess.com"]
[Source "ChessBase"]
[SourceQuality "1"]
[TimeControl "40/5400+30:1800+30"]

1. d4 {[%emt 0:02:19]} Nf6 {[%emt 0:00:36]} 2. Nf3 {[%emt 0:00:12]} e6 {[%emt 0:03:50]} 3. g3 {[%emt 0:00:12]} b5 {[%emt 0:02:15]} 4. Bg2 {[%emt 0:01:31]} Bb7 {[%emt 0:00:13]} 5. O-O {[%emt 0:00:08]} c5 {[%emt 0:00:57]} 6. b3 {[%emt 0:08:31]} Be7 {[%emt 0:03:28]} 7. Bb2 {[%emt 0:01:44]} O-O {[%emt 0:01:48]} 8. Nbd2 {[%emt 0:02:07]} cxd4 {[%emt 0:12:26]} 9. Nxd4 {[%emt 0:03:17]} Bxg2 {[%emt 0:01:53]} 10. Kxg2 {[%emt 0:00:22]} Qb6 {[%emt 0:01:46]} 11. c4 {[%emt 0:10:40]} Qb7+ {[%emt 0:05:08]} 12. Kg1 {[%emt 0:06:18]} bxc4 {[%emt 0:03:42]} 13. Nxc4 {[%emt 0:02:02]} d5 14. Ne5 {[%emt 0:03:14]} Bd6 {[%emt 0:09:50]} 15. Nd3 {[%emt 0:02:55]} Re8 {[%emt 0:05:52]} 16. Rc1 {[%emt 0:03:02]} Na6 {[%emt 0:10:31]} 17. Rc6 {[%emt 0:08:52]} Rad8 {[%emt 0:02:00]} 18. Qc2 {[%emt 0:01:26]} Nb8 {[%emt 0:03:07]} 19. Nc5 {[%emt 0:13:38]} Qa8 {[%emt 0:03:44]} 20. Rxd6 {[%emt 0:00:44]} Rxd6 {[%emt 0:00:02]} 21. Nb5 {[%emt 0:01:10]} Rc6 {[%emt 0:01:13]} 22. Bxf6 {[%emt 0:00:57]} gxf6 {[%emt 0:00:18]} 23. b4 {[%emt 0:00:34]} Nd7 {[%emt 0:03:43]} 24. Nd4 {[%emt 0:01:32]} Rcc8 {[%emt 0:00:56]} 25. Qc1 {[%emt 0:02:53]} a5 {[%emt 0:06:45]} 26. a3 {[%emt 0:04:52]} Nxc5 {[%emt 0:01:10]} 27. bxc5 {[%emt 0:00:09]} Qa7 {[%emt 0:00:11]} 28. Qf4 {[%emt 0:05:08]} Qxc5 {[%emt 0:01:33]} 29. Qxf6 {[%emt 0:01:07]} Qe7 {[%emt 0:02:13]} 30. Qf3 {[%emt 0:01:06]} Rc4 {[%emt 0:01:14]} 31. e3 {[%emt 0:00:14]} Qxa3 {[%emt 0:02:10]} 32. Qg4+ {[%emt 0:01:35]} Kh8 {[%emt 0:01:35]} 33. Qh5 {[%emt 0:00:02]} Qe7 {[%emt 0:01:04]} 34. Rb1 {[%emt 0:00:11]} Rec8 {[%emt 0:03:02]} 35. Kg2 {[%emt 0:00:48]} Rb4 {[%emt 0:01:04]} 36. Ra1 {[%emt 0:00:34]} a4 {[%emt 0:00:45]} 37. Nf3 {[%emt 0:00:13]} f6 {[%emt 0:01:30]} 38. Qh3 {[%emt 0:01:17]} Ra8 {[%emt 0:02:03]} 39. Nd4 {[%emt 0:00:14]} Rb6 {[%emt 0:00:54]} 40. Qg4 {[%emt 0:11:27]} a3 {[%emt 0:01:23]} 41. Ra2 {[%emt 0:01:12]} Rb2 {[%emt 0:04:27]} 42. Ra1 {[%emt 0:00:02]} Ra6 {[%emt 0:00:56]} 43. Rc1 {[%emt 0:00:21]} Ra8 {[%emt 0:02:58]} 44. Nxe6 {[%emt 0:03:54]} a2 {[%emt 0:07:18]} 45. Nd4 {[%emt 0:00:54]} Qe4+ {[%emt 0:00:29]} 46. Qxe4 {[%emt 0:02:26]} dxe4 {[%emt 0:00:05]} 0-1

[Event "Stare Mesto Open-A 2022"]
[Site "Stare Mesto"]
[Date "2022.08.19"]
[Round "8.1"]
[White "Neuman, Petr"]
[Black "Sramek, Vojtech"]
[Result "0-1"]
[ECO "B53"]
[WhiteElo "2378"]
[BlackElo "2249"]
[Annotator "TA"]
[PlyCount "153"]
[EventDate "2022.08.12"]
[EventType "swiss"]
[EventCountry "CZE"]
[SourceTitle "playchess.com"]
[Source "ChessBase"]
[SourceQuality "1"]
[TimeControl "40/5400+30:1800+30"]

{[%evp 9,153,22,16,22,12,8,16,8,8,0,0,-6,-16,-24,-11,-32,0,-52,-49,-49,-30,-50,0,-24,54,0,0,-9,33,39,29,33,28,39,40,31,34,31,28,32,52,45,56,3,42,53,54,27,34,34,84,86,77,79,80,26,26,26,26,22,47,26,50,26,37,10,37,37,37,37,59,48,982,0,0,0,0,0,0,0,0,0,0,0,0,0,0,0,0,0,213,206,206,206,206,206,115,0,206,206,198,175,206,198,198,198,198,198,198,189,178,0,0,0,6,0,0,0,0,0,0,0,0,0,0,0,0,0,0,0,0,0,0,0,0,0,0,0,0,0,0,0,0,0,0,0]} 1. e4 {[%emt 1:28:00]} c5 {[%emt 1:27:57]} 2. Nf3 {[%emt 0:00:31]} d6 {[%emt 0:00:29]} 3. d4 {[%emt 0:00:31]} cxd4 {[%emt 0:00:30]} 4. Qxd4 {[%emt 0:00:00]} Nc6 {[%emt 0:00:00]} 5. Bb5 {[%emt 0:00:00]} a6 {[%emt 0:00:00]} 6. Bxc6+ {[%emt 0:00:00] B53: Sicilian: 2...d6: Lines with Qxd4.} bxc6 {[%emt 0:00:00]} 7. c4 {[%emt 0:00:00]} e5 {[%emt 0:00:00]} 8. Qd3 {[%emt 0:00:00]} Ne7 {[%emt 0:00:00] seems to push 8...Nf6 aside.} 9. Nc3 {[%emt 0:00:00]} Ng6 {[%emt 0:00:00]} 10. c5 {[%emt 0:00:00]} dxc5 {[%emt 0:00:00]} 11. Qxd8+ {[%emt 0:00:00]} Kxd8 {[%emt 0:00:00]} 12. Be3 {[%emt 0:00:00]} Kc7 {[%emt 0:00:00] [#]} 13. Rc1 $146 {[%emt 0:00:00]} (13. g3 $11) ({Predecessor:} 13. g3 Rb8 14. b3 f6 15. Nd2 Be6 16. O-O Be7 17. Rfc1 Rhd8 18. Na4 Rb5 19. Kf1 {½-½ (60) Somkin,K (2262)-Efimov,L (1866) Cheliabinsk 2021}) 13... Rb8 $15 {[%emt 0:00:00]} 14. Rc2 {[%emt 0:00:00]} f6 {[%emt 0:00:00]} 15. O-O {[%emt 0:00:00]} Be6 {[%emt 0:00:00]} (15... Nf4 $15) 16. Rfc1 {[%emt 0:00:00]} c4 {[%emt 0:00:00]} (16... Nf4 $11) 17. Nd2 {[%emt 0:00:00]} (17. g3 $14) 17... Bb4 $11 {[%emt 0:00:00]} 18. Ncb1 {[%emt 0:00:00]} Bxd2 {[%emt 0:00:00]} 19. Nxd2 {[%emt 0:00:00]} Nf4 {[%emt 0:00:00]} 20. Bxf4 {[%emt 0:00:00]} exf4 {[%emt 0:00:00]} 21. Nxc4 {[%emt 0:00:00]} Bxc4 {[%emt 0:00:00]} 22. Rxc4 {[%emt 0:00:00][%mdl 4096] Endgame KRR-KRR} Rb6 {[%emt 0:00:00]} 23. Kf1 {[%emt 0:00:00]} Rd8 {[%emt 0:00:00]} 24. R1c2 {[%emt 0:00:00] Prevents Rd2.} Rd6 {[%emt 0:00:00]} 25. Ke2 {[%emt 0:00:00]} Rb5 {[%emt 0:00:00]} 26. Rc5 {[%emt 0:00:00]} (26. Ra4 $14) 26... Rb4 {[%emt 0:00:00]} 27. Kf3 {[%emt 0:00:00]} g5 {[%emt 0:00:00]} 28. e5 {[%emt 0:00:00]} fxe5 {[%emt 0:00:03]} 29. Rxe5 {[%emt 0:00:00]} Rb5 {[%emt 0:01:02]} ({Black should try} 29... h6 $14) 30. Re7+ $1 $16 {[%emt 0:00:00]} Rd7 {[%emt 0:00:49]} 31. Rxd7+ {[%emt 0:00:00]} Kxd7 {[%emt 0:00:06] KR-KR} 32. h4 {[%emt 0:00:00]} ({White should play} 32. Kg4 $16) 32... h6 $11 {[%emt 0:02:57]} 33. Kg4 {[%emt 0:00:00]} Rd5 {[%emt 0:01:55]} 34. b3 {[%emt 0:00:00]} Kd6 {[%emt 0:02:54]} 35. Re2 {[%emt 0:00:00]} Kd7 {[%emt 0:01:01]} 36. f3 {[%emt 0:00:00]} c5 {[%emt 0:02:32]} 37. Kh5 {[%emt 0:00:00]} Kc6 {[%emt 0:05:44]} 38. hxg5 {[%emt 0:00:00]} hxg5 {[%emt 0:00:53]} 39. Kg6 {[%emt 0:00:00]} Kb5 {[%emt 0:00:20]} 40. Kf6 {[%emt 0:00:00]} c4 $2 {[%emt 0:00:46][%mdl 8192]} (40... a5 $14) 41. bxc4+ $2 {[%emt 0:24:23]} (41. Re5 $1 $18 {[%cal Re5d5]} Rxe5 42. bxc4+ Kc5 43. Kxe5 Kxc4 44. Kf6) 41... Kxc4 {[%emt 0:00:08]} 42. Re4+ {[%emt 0:00:00]} Kc3 {[%emt 0:03:49]} 43. Re5 {[%emt 0:00:00]} Rxe5 {[%emt 0:11:26]} 44. Kxe5 {[%emt 0:00:00] K3P-K3P} a5 {[%emt 0:00:07]} 45. Kf5 {[%emt 0:00:00]} a4 {[%emt 0:00:05]} 46. Kxg5 {[%emt 0:00:00]} a3 {[%emt 0:00:05]} 47. Kxf4 {[%emt 0:00:00] KP-KP} Kb2 {[%emt 0:00:06]} 48. g4 {[%emt 0:00:00]} Kxa2 {[%emt 0:00:05] ( -> ...Kb3). KPP-KP} 49. g5 {[%emt 0:00:00]} Kb1 $2 {[%emt 0:00:42]} (49... Kb2 $11 {and Black stays safe.} 50. g6 a2) 50. g6 $18 {[%emt 0:00:00]} a2 {[%emt 0:00:05]} 51. g7 {[%emt 0:00:00]} a1=Q {[%emt 0:00:06]} 52. g8=Q {[%emt 0:00:00] Threatening mate with Qg1+. KQ-KQ} Qd4+ {[%emt 0:01:49]} (52... Kc2 $18 53. Qd5 Qg7) 53. Kf5 $16 {[%emt 0:00:00] And now Qe6 would win.} Qc5+ $2 {[%emt 0:04:14]} (53... Qd3+ $11 54. Kg4 Qd4+ 55. Kh3 Kc2) 54. Ke4 $18 {[%emt 0:00:00]} Qb4+ {[%emt 0:01:46]} 55. Kd3 {[%emt 0:00:00]} Qa3+ {[%emt 0:01:23] [#]} 56. Ke2 $1 {[%emt 0:00:00]} Qb2+ {[%emt 0:01:56]} 57. Kf1 {[%emt 0:00:00]} Qb5+ {[%emt 0:00:18]} 58. Kg1 {[%emt 0:00:00]} Kc2 {[%emt 0:01:43]} 59. Qe6 {[%emt 0:00:00]} Qg5+ {[%emt 0:01:11] [#]} 60. Kf2 $2 {[%emt 0:00:00]} ({Only move:} 60. Qg4 $1 $18 {[%cal Rg4g5]} Qe3+ 61. Kg2) 60... Qh4+ $11 {[%emt 0:01:26] The position is equal.} 61. Kg2 {[%emt 0:00:00]} Kd3 {[%emt 0:02:14]} 62. Qg4 {[%emt 0:00:00]} Qe7 {[%emt 0:00:43]} 63. Kg3 {[%emt 0:00:00]} Qe1+ {[%emt 0:00:28]} 64. Kf4 {[%emt 0:00:00]} Qb4+ {[%emt 0:00:35]} 65. Kf5 {[%emt 0:00:00]} Qf8+ {[%emt 0:00:23]} 66. Kg5 {[%emt 0:00:00] Qf5+ would kill now.} Qe7+ {[%emt 0:00:46]} 67. Kf4 {[%emt 0:00:00]} Qd6+ {[%emt 0:00:16]} 68. Kf5 {[%emt 0:00:00] White threatens Qe4+ and mate.} Qf8+ {[%emt 0:00:28]} 69. Ke6 {[%emt 0:00:00] Intending Qf5+ and mate.} Qe8+ {[%emt 0:00:38]} 70. Kf6 {[%emt 0:00:00]} Qf8+ {[%emt 0:00:20]} 71. Kg6 {[%emt 0:00:00] White wants to mate with Qf5+.} Qg8+ {[%emt 0:00:31]} 72. Kh6 {[%emt 0:00:00]} Qh8+ {[%emt 0:01:06]} 73. Kg5 {[%emt 0:00:00] aiming for Qe4+.} Qd8+ {[%emt 0:00:15]} 74. Kh5 {[%emt 0:00:00] Qe4+ is the strong threat.} Qh8+ {[%emt 0:00:10]} 75. Kg5 $1 {[%emt 0:00:00]} Qd8+ {[%emt 0:00:07]} 76. Kh5 {[%emt 0:00:00] Black must now prevent Qe4+.} Qh8+ {[%emt 0:00:25]} 77. Kg5 {[%emt 0:00:00][%mdl 32768] White really could win this.  Weighted Error Value: White=0.26 (precise) /Black=0.27 (precise) . Sensor Board Error (Ke4/e5)?} 0-1

[Event "Stare Mesto Open-A 2022"]
[Site "Stare Mesto"]
[Date "2022.08.19"]
[Round "8.2"]
[White "Kostka, Vit"]
[Black "Haba, Petr"]
[Result "0-1"]
[ECO "C01"]
[WhiteElo "2168"]
[BlackElo "2453"]
[Annotator "TA"]
[PlyCount "72"]
[EventDate "2022.08.12"]
[EventType "swiss"]
[EventCountry "CZE"]
[SourceTitle "playchess.com"]
[Source "ChessBase"]
[SourceQuality "1"]
[TimeControl "40/5400+30:1800+30"]

{[%evp 12,72,0,0,25,-8,0,-6,0,-2,-3,0,0,-4,4,0,16,-58,-58,-106,-106,-122,-117,-119,-112,-191,-116,-241,-220,-233,-234,-209,-219,-220,-197,-197,0,-231,-210,-204,-210,-215,-146,-157,-161,-161,-154,-258,-235,-315,-304,-323,-314,-312,-309,-331,-324,-317,-279,-474,-325,-595,-608]} 1. e4 {[%emt 0:00:08]} e6 {[%emt 0:00:25]} 2. d4 {[%emt 0:00:09]} d5 {[%emt 0:00:05]} 3. exd5 {[%emt 0:00:33]} exd5 {[%emt 0:00:05]} 4. Nf3 {[%emt 0:00:09]} Bd6 {[%emt 0:03:22]} 5. c4 {[%emt 0:00:37][%cal Bc2c4,Bc4c5][%mdl 32]} Nf6 {[%emt 0:00:27]} 6. c5 {[%emt 0:03:46]} Be7 {[%emt 0:00:05]} 7. Bd3 {[%emt 0:02:41]} O-O {[%emt 0:01:39] C01: French: Exchange Variation.} 8. h3 {[%emt 0:07:03]} b6 {[%emt 0:00:49]} 9. cxb6 $1 {[%emt 0:03:38]} axb6 {[%emt 0:00:50] The position is equal.} 10. O-O {[%emt 0:00:31]} c5 {[%emt 0:03:31]} 11. Nc3 {[%emt 0:02:32]} Nc6 {[%emt 0:02:32]} 12. Re1 {[%emt 0:05:12]} h6 {[%emt 0:01:43]} 13. Bf4 {[%emt 0:03:01]} Bd6 {[%emt 0:02:04] [#]} 14. Qd2 $146 {[%emt 0:01:42]} (14. Be5 $11) ({Predecessor:} 14. Be5 cxd4 15. Bxd6 Qxd6 16. Nb5 Qf4 17. Nbxd4 Nxd4 18. Nxd4 Kh8 19. Ne2 Qb4 20. Qc1 {1-0 (63) Russek Libni,G (2395)-Valle,A Sao Paulo 1991}) 14... cxd4 $15 {[%emt 0:20:52]} ({Don't play} 14... Nxd4 15. Nxd4 cxd4 16. Nb5 Bxf4 17. Qxf4 $14) 15. Nb5 {[%emt 0:26:54]} (15. Ne2 $1 $15) 15... Bb4 $17 {[%emt 0:03:01]} 16. Qc2 {[%emt 0:09:38]} Bxe1 {[%emt 0:01:17]} 17. Qxc6 {[%emt 0:00:12]} Bd7 {[%emt 0:02:44]} 18. Qb7 {[%emt 0:06:43]} (18. Qd6 $17 Bxb5 19. Qxd8 Rfxd8 20. Bxb5) 18... Bb4 {[%emt 0:02:28]} (18... Bxb5 $19 19. Bxb5 Bb4) 19. a3 {[%emt 0:03:24]} (19. Nc7 $17 Rb8 20. Qa7) 19... Bxb5 $19 {[%emt 0:05:26]} 20. Bxb5 {[%emt 0:00:26]} Bd6 {[%emt 0:00:06]} 21. Bxd6 {[%emt 0:06:30]} Qxd6 {[%emt 0:00:10]} 22. Nxd4 {[%emt 0:00:08]} Rab8 {[%emt 0:15:30]} 23. Qa7 {[%emt 0:02:42]} Ra8 {[%emt 0:14:14][%cal Bb8a8,Ba8a7,Ba7c7,Bc7c1][%mdl 32]} 24. Qb7 {[%emt 0:00:06]} Rfb8 {[%emt 0:00:08]} 25. Qc6 {[%emt 0:00:54]} Qf4 {[%emt 0:01:12]} 26. Rd1 {[%emt 0:01:11]} Ra7 {[%emt 0:06:05]} ({Stronger than} 26... Ne4 27. Nf3) 27. g3 {[%emt 0:02:03]} Qe5 {[%emt 0:01:03]} 28. Qc3 {[%emt 0:00:50]} Rc7 {[%emt 0:01:06]} 29. Qb4 {[%emt 0:00:36]} (29. Qf3 $17) 29... Rbc8 {[%emt 0:00:50]} 30. Qd2 {[%emt 0:00:52]} Ne4 {[%emt 0:01:07]} 31. Qe3 {[%emt 0:00:19]} Qg5 {[%emt 0:01:52]} 32. Qxg5 {[%emt 0:03:05]} hxg5 {[%emt 0:00:03]} 33. Kg2 {[%emt 0:00:22]} Rc1 {[%emt 0:02:28]} 34. Rd3 {[%emt 0:00:07]} g6 {[%emt 0:01:16]} 35. Ba6 $2 {[%emt 0:01:21]} (35. Re3) 35... R8c7 {[%emt 0:00:28] [#] And now ...Nc5 would win.} 36. Kf3 $2 {[%emt 0:00:41]} (36. Ne2 {was worth a try.} R1c2 37. Rxd5) 36... Nc5 {[%emt 0:00:25][%csl LRa6,LRd3] Weighted Error Value: White=0.33/Black=0.23 (precise)} 0-1

[Event "Stare Mesto Open-A 2022"]
[Site "Stare Mesto"]
[Date "2022.08.19"]
[Round "8.3"]
[White "Cerveny, Martin"]
[Black "Szotkowski, Jakub"]
[Result "0-1"]
[ECO "A43"]
[WhiteElo "2396"]
[BlackElo "2344"]
[Annotator "TA"]
[PlyCount "56"]
[EventDate "2022.08.12"]
[EventType "swiss"]
[EventCountry "CZE"]
[SourceTitle "playchess.com"]
[Source "ChessBase"]
[SourceQuality "1"]
[TimeControl "40/5400+30:1800+30"]

{[%evp 9,56,12,7,10,20,-46,-56,-83,-79,-59,-73,-37,0,0,0,4,25,28,33,-72,-84,-97,-103,-155,-156,-155,-150,-215,-213,-222,-213,-244,-250,-248,-175,-241,-230,-345,-354,-395,-406,-691,-696,-877,-862,-948,-936,-888,-802]} 1. d4 {[%emt 0:00:04]} Nf6 {[%emt 0:00:16]} 2. Nf3 {[%emt 0:00:18]} c5 {[%emt 0:00:23]} 3. d5 {[%emt 0:01:16]} b5 {[%emt 0:00:22]} 4. c4 {[%emt 0:03:16]} g6 {[%emt 0:05:21]} 5. a4 {[%emt 0:02:17]} Qa5+ {[%emt 0:02:36]} 6. Nfd2 {[%emt 0:05:03] A57: Benko/Volga Gambit.} d6 {[%emt 0:13:29] [#]} 7. b4 $146 {[%emt 0:13:40]} ({Don't play} 7. Nc3 b4 8. Nce4 Nxe4 9. Nxe4 Nd7 $11) ({White should play} 7. cxb5 $11 Nxd5 8. g3) ({Predecessor:} 7. g3 bxc4 8. Nc3 Ba6 9. Bg2 Bg7 10. O-O Nbd7 11. h3 O-O 12. Qc2 Rab8 13. f4 {1-0 (50) Lugovoi,A (2315)-Andreev,K St Petersburg 1992}) 7... cxb4 $15 {[%emt 0:04:42] Strongly threatening ...bxc4.} 8. cxb5 {[%emt 0:04:22] Black is slightly better.} Bg7 $1 {[%emt 0:06:57]} ({Much less strong is} 8... Nxd5 9. Nb3 Qc7 10. Qxd5 $16) 9. Bb2 {[%emt 0:00:30]} O-O {[%emt 0:01:13]} 10. e4 {[%emt 0:06:31]} Nbd7 {[%emt 0:06:30]} 11. Nb3 {[%emt 0:01:22]} Qd8 {[%emt 0:09:38]} 12. N1d2 {[%emt 0:01:29]} e6 {[%emt 0:00:55]} 13. dxe6 {[%emt 0:05:00]} fxe6 {[%emt 0:00:09][%cal Of6e4] aiming for ...Nxe4!} 14. Nd4 {[%emt 0:02:51] [#]} (14. Bc4 $14 {keeps the upper hand.}) 14... Nc5 $1 $17 {[%emt 0:06:49]} 15. Nc6 {[%emt 0:01:48]} Qd7 {[%emt 0:01:24]} 16. e5 {[%emt 0:02:01]} (16. f3 $142) 16... Nd5 {[%emt 0:00:40][%cal Bf6d5,Bd5f4,Bf4d3,Bd3b2,Bb2d1,Bd1c3][%mdl 32]} 17. Bc4 {[%emt 0:07:47] [#]} Bb7 $1 {[%emt 0:01:30]} 18. O-O {[%emt 0:01:10]} (18. Nb3 $17) 18... Bxc6 $19 {[%emt 0:00:48]} 19. bxc6 {[%emt 0:00:02]} Qxc6 {[%emt 0:00:02]} 20. Nf3 {[%emt 0:03:32] Black must now prevent Nd4.} Nf4 {[%emt 0:02:32] Threatens to win with ...dxe5.} 21. Bb5 {[%emt 0:02:43]} Qd5 {[%emt 0:06:46]} 22. Rc1 {[%emt 0:01:05]} (22. Qxd5 {might work better.} exd5 23. Rfd1) 22... Nfd3 {[%emt 0:03:14]} 23. Bc4 {[%emt 0:05:30]} (23. Rc2 $142) 23... Nxb2 {[%emt 0:03:09] Pair of Knights!} ({And not} 23... Qe4 24. Ng5 Qh4 25. Nxe6 Nxc1 26. Qxc1 Nxe6 27. Bxe6+ Kh8 28. exd6 $17) 24. Bxd5 {[%emt 0:07:23]} Nxd1 {[%emt 0:00:48]} 25. Rxc5 {[%emt 0:02:12]} (25. Bxa8 $142 Nc3 26. Bc6 Ne2+ 27. Kh1 Nxc1 28. Rxc1) 25... exd5 {[%emt 0:03:26] Black is clearly winning.} 26. Rxd5 {[%emt 0:00:34]} Nc3 {[%emt 0:00:11][%csl LRa4,LRd5]} 27. Rxd6 {[%emt 0:00:20]} b3 {[%emt 0:01:37]} 28. Rd3 {[%emt 0:00:15]} Rfc8 {[%emt 0:00:43] Weighted Error Value: White=0.55/Black=0.06 (flawless)} 0-1